[Event "Early-Titled-Tuesday-Blitz-August-29-2023"]
[Site "Chess.com"]
[Date "2023.08.29"]
[Round "6"]
[White "Firouzja2003"]
[Black "Andreikka"]
[Result "1-0"]
[WhiteElo "3091"]
[BlackElo "3029"]
[TimeControl "180+1"]
[EndTime "9:07:15 PDT"]
[Termination "Firouzja2003 won on time"]

1. e4 {[%clk 0:03:00.3]} 1... e5 {[%clk 0:02:59.6]} 2. Nf3 {[%clk 0:03:00.9]}
2... Nc6 {[%clk 0:02:59.7]} 3. Bb5 {[%clk 0:03:01.2]} 3... a6 {[%clk 0:02:59.5]}
4. Ba4 {[%clk 0:03:01.2]} 4... Nf6 {[%clk 0:02:59.8]} 5. O-O {[%clk 0:02:59.7]}
5... Be7 {[%clk 0:02:59.7]} 6. Re1 {[%clk 0:02:59.9]} 6... b5 {[%clk 0:02:59.7]}
7. Bb3 {[%clk 0:03:00.2]} 7... O-O {[%clk 0:02:59.4]} 8. d3 {[%clk 0:02:57.7]}
8... d6 {[%clk 0:02:58.1]} 9. Bd2 {[%clk 0:02:57.9]} 9... h6 {[%clk 0:02:56]}
10. h3 {[%clk 0:02:53.1]} 10... Re8 {[%clk 0:02:55.4]} 11. a4 {[%clk 0:02:53.1]}
11... Rb8 {[%clk 0:02:54.7]} 12. axb5 {[%clk 0:02:50.8]} 12... axb5 {[%clk
0:02:55.6]} 13. Nc3 {[%clk 0:02:51]} 13... Bf8 {[%clk 0:02:55.8]} 14. Nd5 {[%clk
0:02:40.9]} 14... Be6 {[%clk 0:02:46.4]} 15. Ra6 {[%clk 0:02:21.7]} 15... Bxd5
{[%clk 0:02:36.6]} 16. exd5 {[%clk 0:02:22]} 16... Ne7 {[%clk 0:02:18]} 17. c4
{[%clk 0:02:18.6]} 17... Nd7 {[%clk 0:02:14.1]} 18. Ra7 {[%clk 0:01:41.7]} 18...
bxc4 {[%clk 0:01:50.7]} 19. dxc4 {[%clk 0:01:28.9]} 19... Nc5 {[%clk 0:01:50.7]}
20. Ba4 {[%clk 0:01:29.1]} 20... Nc8 {[%clk 0:01:45.6]} 21. Rxc7 {[%clk
0:01:04.8]} 21... Qxc7 {[%clk 0:01:36.9]} 22. Bxe8 {[%clk 0:01:04.6]} 22... Nd3
{[%clk 0:01:30.4]} 23. Re4 {[%clk 0:00:57.8]} 23... f5 {[%clk 0:01:05.8]} 24.
Rh4 {[%clk 0:00:55.8]} 24... Qe7 {[%clk 0:00:59]} 25. Bg6 {[%clk 0:00:28.2]}
25... Qf6 {[%clk 0:00:58.6]} 26. Bh5 {[%clk 0:00:04.6]} 26... g6 {[%clk
0:00:43.8]} 27. Bxh6 {[%clk 0:00:04.8]} 27... Bxh6 {[%clk 0:00:42]} 28. Qxd3
{[%clk 0:00:05]} 28... gxh5 {[%clk 0:00:42.5]} 29. Rxh5 {[%clk 0:00:04.8]} 29...
Ne7 {[%clk 0:00:42.9]} 30. Nh4 {[%clk 0:00:04]} 30... Bg5 {[%clk 0:00:39.1]} 31.
Qg3 {[%clk 0:00:03.3]} 31... Kf7 {[%clk 0:00:14.8]} 32. Qxg5 {[%clk 0:00:04]}
32... Qxg5 {[%clk 0:00:13.1]} 33. Rxg5 {[%clk 0:00:04.9]} 33... Rxb2 {[%clk
0:00:13]} 34. Rh5 {[%clk 0:00:02.9]} 34... Rc2 {[%clk 0:00:12.2]} 35. Nxf5
{[%clk 0:00:02.5]} 35... Kg6 {[%clk 0:00:05.1]} 36. g4 {[%clk 0:00:02.7]} 36...
Nxf5 {[%clk 0:00:05]} 37. Rxf5 {[%clk 0:00:03.2]} 37... Rxc4 {[%clk 0:00:05.7]}
38. Kg2 {[%clk 0:00:02.8]} 38... Rd4 {[%clk 0:00:06.2]} 39. Kg3 {[%clk
0:00:02.9]} 39... Rxd5 {[%clk 0:00:06.3]} 40. h4 {[%clk 0:00:03.6]} 40... Rd1
{[%clk 0:00:02.8]} 41. h5+ {[%clk 0:00:03.8]} 41... Kg7 {[%clk 0:00:02.2]} 42.
Rg5+ {[%clk 0:00:04.2]} 42... Kh7 {[%clk 0:00:01.9]} 43. Rg6 {[%clk 0:00:04.7]}
43... d5 {[%clk 0:00:01.4]} 44. Rd6 {[%clk 0:00:02.3]} 44... e4 {[%clk 0:00:02]}
45. Kf4 {[%clk 0:00:02.5]} 45... Rd4 {[%clk 0:00:01.4]} 46. Kg5 {[%clk
0:00:02.8]} 46... Kg7 {[%clk 0:00:01.4]} 47. h6+ {[%clk 0:00:03.1]} 47... Kf7
{[%clk 0:00:02]} 48. h7 {[%clk 0:00:03.6]} 1-0

[Event "Early-Titled-Tuesday-Blitz-August-29-2023"]
[Site "Chess.com"]
[Date "2023.08.29"]
[Round "6"]
[White "Kildepiotr"]
[Black "mbojan"]
[Result "1/2-1/2"]
[WhiteElo "2672"]
[BlackElo "2889"]
[TimeControl "180+1"]
[EndTime "9:07:15 PDT"]
[Termination "Game drawn by repetition"]

1. Nf3 {[%clk 0:02:58.2]} 1... g6 {[%clk 0:02:59.6]} 2. g3 {[%clk 0:02:57.9]}
2... Bg7 {[%clk 0:02:59.3]} 3. d4 {[%clk 0:02:58.6]} 3... Nf6 {[%clk 0:02:58.4]}
4. Bg2 {[%clk 0:02:58.9]} 4... O-O {[%clk 0:02:59.1]} 5. O-O {[%clk 0:02:59.5]}
5... d6 {[%clk 0:02:59.5]} 6. Nbd2 {[%clk 0:02:59.7]} 6... Nbd7 {[%clk
0:02:56.5]} 7. e4 {[%clk 0:02:59.6]} 7... e5 {[%clk 0:02:56.9]} 8. dxe5 {[%clk
0:03:00.2]} 8... dxe5 {[%clk 0:02:57.1]} 9. Qe2 {[%clk 0:03:00.2]} 9... c6
{[%clk 0:02:56.5]} 10. a4 {[%clk 0:03:00.4]} 10... b6 {[%clk 0:02:54.3]} 11. b3
{[%clk 0:03:00.6]} 11... Qc7 {[%clk 0:02:53.9]} 12. Rd1 {[%clk 0:02:58.8]} 12...
Re8 {[%clk 0:02:52.3]} 13. Bb2 {[%clk 0:02:58.9]} 13... h6 {[%clk 0:02:45.9]}
14. Nc4 {[%clk 0:02:57.9]} 14... Ba6 {[%clk 0:02:45.7]} 15. Nfd2 {[%clk
0:02:56.5]} 15... Rad8 {[%clk 0:02:33.8]} 16. Qe1 {[%clk 0:02:56.1]} 16... Bf8
{[%clk 0:02:32.1]} 17. Ne3 {[%clk 0:02:49.4]} 17... Bb4 {[%clk 0:02:30.8]} 18.
c3 {[%clk 0:02:48]} 18... Bf8 {[%clk 0:02:30.8]} 19. b4 {[%clk 0:02:46.4]} 19...
Bd3 {[%clk 0:02:23]} 20. f3 {[%clk 0:02:40.6]} 20... c5 {[%clk 0:02:19.8]} 21.
b5 {[%clk 0:02:35.6]} 21... c4 {[%clk 0:02:19.8]} 22. Bf1 {[%clk 0:02:32.4]}
22... Bc5 {[%clk 0:01:59.4]} 23. Kg2 {[%clk 0:02:18.8]} 23... Bxe3 {[%clk
0:01:38.7]} 24. Qxe3 {[%clk 0:02:19.7]} 24... Nc5 {[%clk 0:01:38.9]} 25. Ba3
{[%clk 0:02:07.3]} 25... Bxf1+ {[%clk 0:01:31.4]} 26. Nxf1 {[%clk 0:02:08.2]}
26... Nb3 {[%clk 0:01:30.3]} 27. Rab1 {[%clk 0:02:05.2]} 27... Kg7 {[%clk
0:01:30.2]} 28. Qe2 {[%clk 0:01:58.3]} 28... Rd3 {[%clk 0:00:52.6]} 29. Rxd3
{[%clk 0:01:48.7]} 29... cxd3 {[%clk 0:00:53.5]} 30. Qxd3 {[%clk 0:01:49.2]}
30... Rd8 {[%clk 0:00:54.2]} 31. Qc2 {[%clk 0:01:43]} 31... Nd4 {[%clk
0:00:20.4]} 32. Qb2 {[%clk 0:01:36.8]} 32... Nxf3 {[%clk 0:00:20.7]} 33. Kxf3
{[%clk 0:01:34.6]} 33... Qc4 {[%clk 0:00:21]} 34. Qe2 {[%clk 0:01:23.3]} 34...
Qxa4 {[%clk 0:00:20.1]} 35. Bb4 {[%clk 0:01:21.1]} 35... a6 {[%clk 0:00:15.5]}
36. bxa6 {[%clk 0:01:16.3]} 36... Rd7 {[%clk 0:00:12.5]} 37. Kg2 {[%clk
0:01:02.8]} 37... b5 {[%clk 0:00:12.5]} 38. Re1 {[%clk 0:00:45.4]} 38... Qxa6
{[%clk 0:00:12.8]} 39. Qf3 {[%clk 0:00:38.7]} 39... Qc6 {[%clk 0:00:12.4]} 40.
Re2 {[%clk 0:00:36.4]} 40... Qc4 {[%clk 0:00:12.5]} 41. Nd2 {[%clk 0:00:32.6]}
41... Qc6 {[%clk 0:00:11.4]} 42. Nb3 {[%clk 0:00:32.2]} 42... Rd1 {[%clk
0:00:11.1]} 43. Rf2 {[%clk 0:00:30.3]} 43... Qxe4 {[%clk 0:00:09.8]} 44. Qxe4
{[%clk 0:00:28.8]} 44... Nxe4 {[%clk 0:00:10.7]} 45. Re2 {[%clk 0:00:29.2]}
45... f5 {[%clk 0:00:10.7]} 46. Nc5 {[%clk 0:00:29.3]} 46... Nxc5 {[%clk
0:00:08.1]} 47. Bxc5 {[%clk 0:00:30.2]} 47... Rd5 {[%clk 0:00:07.4]} 48. Bb4
{[%clk 0:00:25.2]} 48... Kf6 {[%clk 0:00:07.6]} 49. Kf2 {[%clk 0:00:24.4]} 49...
g5 {[%clk 0:00:07.4]} 50. Ke3 {[%clk 0:00:23.7]} 50... Rd1 {[%clk 0:00:05]} 51.
Rd2 {[%clk 0:00:23.3]} 51... f4+ {[%clk 0:00:04.6]} 52. gxf4 {[%clk 0:00:22.9]}
52... gxf4+ {[%clk 0:00:05.5]} 53. Ke2 {[%clk 0:00:22.2]} 53... Rh1 {[%clk
0:00:04.1]} 54. Kd3 {[%clk 0:00:18.6]} 54... Kf5 {[%clk 0:00:04.4]} 55. Re2
{[%clk 0:00:19]} 55... Rd1+ {[%clk 0:00:02.8]} 56. Kc2 {[%clk 0:00:19.1]} 56...
Rd7 {[%clk 0:00:03.1]} 57. Bc5 {[%clk 0:00:18.5]} 57... e4 {[%clk 0:00:03.7]}
58. Bd4 {[%clk 0:00:18.8]} 58... Re7 {[%clk 0:00:02.2]} 59. Kd2 {[%clk
0:00:18.8]} 59... Rd7 {[%clk 0:00:02.5]} 60. Kc2 {[%clk 0:00:19.1]} 60... b4
{[%clk 0:00:03.2]} 61. Kb3 {[%clk 0:00:18.9]} 61... bxc3 {[%clk 0:00:03.4]} 62.
Kxc3 {[%clk 0:00:19.8]} 62... Rc7+ {[%clk 0:00:04]} 63. Kd2 {[%clk 0:00:19.9]}
63... Rd7 {[%clk 0:00:03.8]} 64. Kc3 {[%clk 0:00:20.3]} 64... Rc7+ {[%clk
0:00:04.4]} 65. Kd2 {[%clk 0:00:20.9]} 65... Rd7 {[%clk 0:00:05.1]} 66. Kc3
{[%clk 0:00:21.5]} 1/2-1/2

[Event "Early-Titled-Tuesday-Blitz-August-29-2023"]
[Site "Chess.com"]
[Date "2023.08.29"]
[Round "6"]
[White "Ramosha"]
[Black "OlaaLa"]
[Result "1-0"]
[WhiteElo "2578"]
[BlackElo "2427"]
[TimeControl "180+1"]
[EndTime "9:07:16 PDT"]
[Termination "Ramosha won by checkmate"]

1. d4 {[%clk 0:03:00.9]} 1... f5 {[%clk 0:02:58]} 2. Nc3 {[%clk 0:03:00.2]} 2...
Nf6 {[%clk 0:02:57.1]} 3. Bf4 {[%clk 0:03:00.1]} 3... d6 {[%clk 0:02:53.1]} 4.
Qd2 {[%clk 0:02:58.9]} 4... g6 {[%clk 0:02:47.4]} 5. O-O-O {[%clk 0:02:58.4]}
5... Bg7 {[%clk 0:02:47.5]} 6. f3 {[%clk 0:02:58.4]} 6... h6 {[%clk 0:02:45.2]}
7. e4 {[%clk 0:02:58.1]} 7... g5 {[%clk 0:02:38.4]} 8. Bg3 {[%clk 0:02:58.1]}
8... f4 {[%clk 0:02:38.4]} 9. Bf2 {[%clk 0:02:57.8]} 9... c6 {[%clk 0:02:22.8]}
10. d5 {[%clk 0:02:53.1]} 10... Nbd7 {[%clk 0:02:14.6]} 11. Nge2 {[%clk
0:02:51]} 11... c5 {[%clk 0:02:14.2]} 12. g3 {[%clk 0:02:49.8]} 12... fxg3
{[%clk 0:02:12.4]} 13. hxg3 {[%clk 0:02:48.4]} 13... Qa5 {[%clk 0:01:58.9]} 14.
f4 {[%clk 0:02:47.2]} 14... gxf4 {[%clk 0:01:28.7]} 15. gxf4 {[%clk 0:02:45.8]}
15... b5 {[%clk 0:01:20.6]} 16. Ng3 {[%clk 0:02:38.4]} 16... b4 {[%clk
0:01:18.5]} 17. Nb1 {[%clk 0:02:37.1]} 17... Ng4 {[%clk 0:01:09.7]} 18. Nf5
{[%clk 0:02:34.5]} 18... Bf6 {[%clk 0:01:09.5]} 19. Bc4 {[%clk 0:02:33.8]} 19...
Ba6 {[%clk 0:01:08.2]} 20. Bxa6 {[%clk 0:02:32]} 20... Qxa6 {[%clk 0:01:08.1]}
21. e5 {[%clk 0:02:29.3]} 21... dxe5 {[%clk 0:01:05.8]} 22. fxe5 {[%clk
0:02:29.6]} 22... Bg5 {[%clk 0:01:03.5]} 23. Be3 {[%clk 0:02:27.8]} 23... Nxe3
{[%clk 0:01:01.6]} 24. Nxe3 {[%clk 0:02:28.7]} 24... O-O-O {[%clk 0:00:57.7]}
25. Rhg1 {[%clk 0:02:19.9]} 25... Nxe5 {[%clk 0:00:56.5]} 26. Rxg5 {[%clk
0:02:16.3]} 26... hxg5 {[%clk 0:00:57.4]} 27. Qg2 {[%clk 0:02:15.9]} 27... Nf7
{[%clk 0:00:32.6]} 28. Rf1 {[%clk 0:01:58.2]} 28... Rhf8 {[%clk 0:00:26.2]} 29.
a3 {[%clk 0:01:57.6]} 29... Kb8 {[%clk 0:00:24.4]} 30. axb4 {[%clk 0:01:56.5]}
30... cxb4 {[%clk 0:00:25.3]} 31. Qg4 {[%clk 0:01:56.9]} 31... Rc8 {[%clk
0:00:19]} 32. Qxb4+ {[%clk 0:01:56.6]} 32... Ka8 {[%clk 0:00:18.3]} 33. Qxe7
{[%clk 0:01:47.2]} 33... Rfe8 {[%clk 0:00:18.6]} 34. Qxf7 {[%clk 0:01:46.8]}
34... Rxe3 {[%clk 0:00:18.7]} 35. Nc3 {[%clk 0:01:33.7]} 35... Rh3 {[%clk
0:00:17.3]} 36. Kd2 {[%clk 0:01:31.4]} 36... Rh2+ {[%clk 0:00:17.2]} 37. Rf2
{[%clk 0:01:31.9]} 37... Rxf2+ {[%clk 0:00:16.8]} 38. Qxf2 {[%clk 0:01:32.8]}
38... Qd6 {[%clk 0:00:17.2]} 39. Kd3 {[%clk 0:01:16.4]} 39... a6 {[%clk
0:00:15.6]} 40. Qf5 {[%clk 0:01:14.3]} 40... Rc7 {[%clk 0:00:15.8]} 41. Qxg5
{[%clk 0:01:13.8]} 41... Qc5 {[%clk 0:00:16.1]} 42. Qf4 {[%clk 0:01:10.5]} 42...
Rd7 {[%clk 0:00:15.2]} 43. Qd4 {[%clk 0:01:09.3]} 43... Qe7 {[%clk 0:00:15.4]}
44. Ne4 {[%clk 0:01:06.5]} 44... Qh4 {[%clk 0:00:14.8]} 45. c4 {[%clk 0:01:06]}
45... Qh3+ {[%clk 0:00:14.7]} 46. Qe3 {[%clk 0:01:04.6]} 46... Qf1+ {[%clk
0:00:14.6]} 47. Kc3 {[%clk 0:01:05.1]} 47... Qd1 {[%clk 0:00:13.2]} 48. Nc5
{[%clk 0:01:03.6]} 48... Rc7 {[%clk 0:00:11.8]} 49. Nxa6 {[%clk 0:01:01.6]}
49... Rb7 {[%clk 0:00:10.7]} 50. Nc5 {[%clk 0:01:00.1]} 50... Rb8 {[%clk
0:00:09.2]} 51. Qd2 {[%clk 0:00:47.6]} 51... Qa1 {[%clk 0:00:08.6]} 52. Ne4
{[%clk 0:00:38.7]} 52... Qa5+ {[%clk 0:00:08.6]} 53. Kd4 {[%clk 0:00:39.2]}
53... Qa4 {[%clk 0:00:08.2]} 54. Nc5 {[%clk 0:00:36.9]} 54... Qa7 {[%clk
0:00:07.4]} 55. b4 {[%clk 0:00:35.6]} 55... Qg7+ {[%clk 0:00:07.1]} 56. Kd3
{[%clk 0:00:34.2]} 56... Qg6+ {[%clk 0:00:07.5]} 57. Kc3 {[%clk 0:00:34.2]}
57... Qg3+ {[%clk 0:00:07.7]} 58. Nd3 {[%clk 0:00:34.3]} 58... Qg7+ {[%clk
0:00:07.4]} 59. Kb3 {[%clk 0:00:34.4]} 59... Rb7 {[%clk 0:00:07.6]} 60. Qc3
{[%clk 0:00:32.7]} 60... Qe7 {[%clk 0:00:07.6]} 61. c5 {[%clk 0:00:32.4]} 61...
Qf7 {[%clk 0:00:07.2]} 62. Qc4 {[%clk 0:00:32.3]} 62... Rd7 {[%clk 0:00:07.5]}
63. d6 {[%clk 0:00:32.2]} 63... Qf3 {[%clk 0:00:07.1]} 64. b5 {[%clk 0:00:31.6]}
64... Qd1+ {[%clk 0:00:07.5]} 65. Qc2 {[%clk 0:00:30.9]} 65... Qf3 {[%clk
0:00:07.9]} 66. Kb4 {[%clk 0:00:30.4]} 66... Ra7 {[%clk 0:00:07.4]} 67. Qc4
{[%clk 0:00:29.3]} 67... Qd1 {[%clk 0:00:06.8]} 68. Qg8+ {[%clk 0:00:29.4]}
68... Kb7 {[%clk 0:00:07.1]} 69. c6+ {[%clk 0:00:30.1]} 69... Kb6 {[%clk
0:00:07.6]} 70. Qb8+ {[%clk 0:00:30.7]} 70... Rb7 {[%clk 0:00:06.8]} 71. Qxb7#
{[%clk 0:00:31.2]} 1-0

[Event "Early-Titled-Tuesday-Blitz-August-29-2023"]
[Site "Chess.com"]
[Date "2023.08.29"]
[Round "6"]
[White "Verony64"]
[Black "fabianvivasz"]
[Result "0-1"]
[WhiteElo "2256"]
[BlackElo "2440"]
[TimeControl "180+1"]
[EndTime "9:07:18 PDT"]
[Termination "fabianvivasz won by checkmate"]

1. e4 {[%clk 0:02:56.4]} 1... c5 {[%clk 0:02:58.9]} 2. Nc3 {[%clk 0:02:55.3]}
2... d6 {[%clk 0:02:58.1]} 3. d3 {[%clk 0:02:55.6]} 3... g6 {[%clk 0:02:55.2]}
4. g3 {[%clk 0:02:55.1]} 4... Bg7 {[%clk 0:02:55.8]} 5. Bg2 {[%clk 0:02:55.8]}
5... Nc6 {[%clk 0:02:55.1]} 6. f4 {[%clk 0:02:55.7]} 6... e6 {[%clk 0:02:44.8]}
7. Nf3 {[%clk 0:02:53.2]} 7... Nge7 {[%clk 0:02:37.4]} 8. O-O {[%clk 0:02:52.7]}
8... b6 {[%clk 0:02:12.6]} 9. Be3 {[%clk 0:02:49]} 9... d5 {[%clk 0:02:10.6]}
10. Bf2 {[%clk 0:02:46.2]} 10... Bb7 {[%clk 0:01:49.6]} 11. e5 {[%clk
0:02:45.6]} 11... O-O {[%clk 0:01:38.2]} 12. Qd2 {[%clk 0:02:43.1]} 12... Qd7
{[%clk 0:01:22.7]} 13. Rae1 {[%clk 0:02:42.3]} 13... f6 {[%clk 0:01:04.5]} 14.
exf6 {[%clk 0:02:40]} 14... Bxf6 {[%clk 0:01:00.2]} 15. Bh3 {[%clk 0:02:31.1]}
15... Nf5 {[%clk 0:00:57.8]} 16. g4 {[%clk 0:02:16]} 16... Nfd4 {[%clk
0:00:57.7]} 17. Bxd4 {[%clk 0:02:14.3]} 17... Nxd4 {[%clk 0:00:50.3]} 18. Ne5
{[%clk 0:01:54.8]} 18... Bxe5 {[%clk 0:00:43.6]} 19. Rxe5 {[%clk 0:01:51.4]}
19... Rae8 {[%clk 0:00:34.3]} 20. Bg2 {[%clk 0:01:43]} 20... b5 {[%clk
0:00:22.3]} 21. Nd1 {[%clk 0:01:36.1]} 21... Nc6 {[%clk 0:00:20.1]} 22. Re2
{[%clk 0:01:34.3]} 22... e5 {[%clk 0:00:19.6]} 23. fxe5 {[%clk 0:01:29.5]} 23...
Rxf1+ {[%clk 0:00:19.4]} 24. Bxf1 {[%clk 0:01:28.7]} 24... Rxe5 {[%clk
0:00:15.5]} 25. Qf4 {[%clk 0:01:22]} 25... Rxe2 {[%clk 0:00:12.2]} 26. Bxe2
{[%clk 0:01:22.9]} 26... Nd4 {[%clk 0:00:11.8]} 27. Bf1 {[%clk 0:01:13.7]} 27...
Nxc2 {[%clk 0:00:11.6]} 28. Nf2 {[%clk 0:01:06.3]} 28... Nd4 {[%clk 0:00:11.4]}
29. Qb8+ {[%clk 0:00:56.4]} 29... Qc8 {[%clk 0:00:10.7]} 30. Qf4 {[%clk
0:00:36.4]} 30... Qf8 {[%clk 0:00:09.9]} 31. Qxf8+ {[%clk 0:00:22]} 31... Kxf8
{[%clk 0:00:09.9]} 32. Bg2 {[%clk 0:00:20.1]} 32... Ke7 {[%clk 0:00:10.3]} 33.
Kf1 {[%clk 0:00:19.8]} 33... Kd6 {[%clk 0:00:10.7]} 34. Nh3 {[%clk 0:00:19.2]}
34... Ne6 {[%clk 0:00:10.9]} 35. Kf2 {[%clk 0:00:17.8]} 35... Bc6 {[%clk
0:00:10.3]} 36. Bf3 {[%clk 0:00:14.5]} 36... Ke5 {[%clk 0:00:10.3]} 37. Kg3
{[%clk 0:00:13.7]} 37... a5 {[%clk 0:00:09.6]} 38. Nf2 {[%clk 0:00:12.9]} 38...
b4 {[%clk 0:00:07.7]} 39. h4 {[%clk 0:00:12.8]} 39... a4 {[%clk 0:00:07.5]} 40.
g5 {[%clk 0:00:13.1]} 40... Bb5 {[%clk 0:00:07.1]} 41. Ng4+ {[%clk 0:00:13.1]}
41... Kd6 {[%clk 0:00:06.4]} 42. Nf6 {[%clk 0:00:13.6]} 42... Bxd3 {[%clk
0:00:06]} 43. Bxd5 {[%clk 0:00:14]} 43... Nd4 {[%clk 0:00:04.7]} 44. Bg8 {[%clk
0:00:13.2]} 44... Nf5+ {[%clk 0:00:04.7]} 45. Kf4 {[%clk 0:00:12.9]} 45... c4
{[%clk 0:00:05.1]} 46. Bxh7 {[%clk 0:00:11.9]} 46... Nxh4 {[%clk 0:00:05.4]} 47.
Ng4 {[%clk 0:00:09.8]} 47... Bb1 {[%clk 0:00:04.8]} 48. a3 {[%clk 0:00:09.4]}
48... c3 {[%clk 0:00:04.1]} 49. bxc3 {[%clk 0:00:07.2]} 49... bxa3 {[%clk
0:00:04.4]} 50. Bg8 {[%clk 0:00:07.3]} 50... a2 {[%clk 0:00:04.9]} 51. Bxa2
{[%clk 0:00:06.9]} 51... Bxa2 {[%clk 0:00:05.8]} 52. Ne3 {[%clk 0:00:06.8]}
52... Bb1 {[%clk 0:00:05.4]} 53. Nc2 {[%clk 0:00:07.7]} 53... Bxc2 {[%clk
0:00:05.4]} 54. Ke3 {[%clk 0:00:08.4]} 54... a3 {[%clk 0:00:06]} 55. Kd4 {[%clk
0:00:09.3]} 55... a2 {[%clk 0:00:06.6]} 56. c4 {[%clk 0:00:10.2]} 56... a1=Q+
{[%clk 0:00:07.2]} 57. Ke3 {[%clk 0:00:08.8]} 57... Qe5+ {[%clk 0:00:07.7]} 58.
Kd2 {[%clk 0:00:09]} 58... Bf5 {[%clk 0:00:05.7]} 59. Kc1 {[%clk 0:00:07.8]}
59... Qe2 {[%clk 0:00:05.2]} 60. c5+ {[%clk 0:00:07.1]} 60... Kc7 {[%clk
0:00:05.9]} 61. c6 {[%clk 0:00:07.4]} 61... Qc2# {[%clk 0:00:06.6]} 0-1

[Event "Early-Titled-Tuesday-Blitz-August-29-2023"]
[Site "Chess.com"]
[Date "2023.08.29"]
[Round "6"]
[White "knightinshiningarmour16"]
[Black "ItsCheckM8Mate"]
[Result "0-1"]
[WhiteElo "2109"]
[BlackElo "2326"]
[TimeControl "180+1"]
[EndTime "9:07:23 PDT"]
[Termination "ItsCheckM8Mate won by resignation"]

1. d4 {[%clk 0:03:00]} 1... Nf6 {[%clk 0:02:59.1]} 2. c4 {[%clk 0:02:58.1]} 2...
c5 {[%clk 0:02:59.2]} 3. d5 {[%clk 0:02:56.6]} 3... e6 {[%clk 0:02:59]} 4. Nc3
{[%clk 0:02:54.8]} 4... exd5 {[%clk 0:02:59.1]} 5. cxd5 {[%clk 0:02:55.7]} 5...
d6 {[%clk 0:02:59.3]} 6. e4 {[%clk 0:02:55.7]} 6... g6 {[%clk 0:02:59.3]} 7. Bd3
{[%clk 0:02:54.4]} 7... Bg7 {[%clk 0:02:59.6]} 8. f3 {[%clk 0:02:54.5]} 8... O-O
{[%clk 0:02:59.1]} 9. Nge2 {[%clk 0:02:54.6]} 9... a6 {[%clk 0:02:58.7]} 10. a4
{[%clk 0:02:54.7]} 10... Qc7 {[%clk 0:02:50.6]} 11. O-O {[%clk 0:02:54.3]} 11...
Nbd7 {[%clk 0:02:42.5]} 12. Bf4 {[%clk 0:02:31.7]} 12... Rb8 {[%clk 0:02:34.6]}
13. h3 {[%clk 0:02:25.4]} 13... c4 {[%clk 0:02:31.5]} 14. Bc2 {[%clk 0:02:22.2]}
14... b5 {[%clk 0:02:30.9]} 15. axb5 {[%clk 0:02:21.2]} 15... axb5 {[%clk
0:02:30.3]} 16. Be3 {[%clk 0:02:19.8]} 16... Nc5 {[%clk 0:02:23.6]} 17. Nd4
{[%clk 0:02:15.7]} 17... Bd7 {[%clk 0:02:16.6]} 18. b4 {[%clk 0:01:52.3]} 18...
cxb3 {[%clk 0:02:12.8]} 19. Bxb3 {[%clk 0:01:52.2]} 19... Rfe8 {[%clk
0:01:49.9]} 20. Rc1 {[%clk 0:01:39.4]} 20... Qa5 {[%clk 0:01:10.2]} 21. Nce2
{[%clk 0:01:26.6]} 21... b4 {[%clk 0:00:50.3]} 22. Bf4 {[%clk 0:01:20]} 22...
Qb6 {[%clk 0:00:49.3]} 23. Be3 {[%clk 0:01:07.9]} 23... Nh5 {[%clk 0:00:46.5]}
24. Bf2 {[%clk 0:01:04.9]} 24... Bc8 {[%clk 0:00:42.1]} 25. Nc6 {[%clk
0:00:59.4]} 25... Ra8 {[%clk 0:00:39.7]} 26. Qc2 {[%clk 0:00:50.5]} 26... Ba6
{[%clk 0:00:39.1]} 27. Rfe1 {[%clk 0:00:45.7]} 27... Bxe2 {[%clk 0:00:37.5]} 28.
Rxe2 {[%clk 0:00:44.6]} 28... Nf4 {[%clk 0:00:37.1]} 29. Rd2 {[%clk 0:00:37.7]}
29... Bf8 {[%clk 0:00:31.4]} 30. Rdd1 {[%clk 0:00:13.8]} 30... Qa6 {[%clk
0:00:24.8]} 31. Rb1 {[%clk 0:00:13.2]} 31... Nfd3 {[%clk 0:00:22.1]} 32. Bd4
{[%clk 0:00:13]} 32... Qa3 {[%clk 0:00:17.3]} 33. Bc4 {[%clk 0:00:12.9]} 33...
Ne5 {[%clk 0:00:16]} 34. Bb3 {[%clk 0:00:11.9]} 34... Qa6 {[%clk 0:00:14.7]} 35.
Nxb4 {[%clk 0:00:11.7]} 35... Qc8 {[%clk 0:00:13.9]} 36. Nc6 {[%clk 0:00:11.3]}
36... Nxc6 {[%clk 0:00:13.5]} 37. dxc6 {[%clk 0:00:12.2]} 37... Qxc6 {[%clk
0:00:13.8]} 38. Bd5 {[%clk 0:00:13.1]} 38... Qa6 {[%clk 0:00:12]} 39. Bxc5
{[%clk 0:00:13]} 39... dxc5 {[%clk 0:00:11.1]} 40. Bxa8 {[%clk 0:00:13.4]} 40...
Qxa8 {[%clk 0:00:11.7]} 41. Qd2 {[%clk 0:00:12.5]} 41... Bg7 {[%clk 0:00:11.1]}
42. Qd5 {[%clk 0:00:12.5]} 42... Bd4+ {[%clk 0:00:11.3]} 43. Kh1 {[%clk
0:00:12.3]} 43... Qa3 {[%clk 0:00:09.4]} 44. Rbc1 {[%clk 0:00:11.1]} 44... Qe3
{[%clk 0:00:09.2]} 45. Qc4 {[%clk 0:00:10.8]} 45... Qf4 {[%clk 0:00:08.8]} 46.
Qe2 {[%clk 0:00:06.9]} 46... Be5 {[%clk 0:00:07.6]} 47. Kg1 {[%clk 0:00:06.2]}
47... Qh2+ {[%clk 0:00:07.6]} 48. Kf2 {[%clk 0:00:06.5]} 48... Bg3+ {[%clk
0:00:05.4]} 49. Ke3 {[%clk 0:00:06.7]} 49... Bf4+ {[%clk 0:00:05.7]} 50. Kd3
{[%clk 0:00:06.9]} 50... Bxc1 {[%clk 0:00:05.6]} 51. Rxc1 {[%clk 0:00:07.7]}
51... Qd6+ {[%clk 0:00:05.2]} 52. Ke3 {[%clk 0:00:07.9]} 52... Qd4+ {[%clk
0:00:04.3]} 53. Kf4 {[%clk 0:00:08.2]} 53... Qf6+ {[%clk 0:00:04.6]} 54. Kg3
{[%clk 0:00:08.3]} 54... Qg5+ {[%clk 0:00:04.9]} 55. Kh2 {[%clk 0:00:08.5]}
55... Qxc1 {[%clk 0:00:05.6]} 0-1